fUSD/lending_fUSD_20251014
["ID","MTS","AMOUNT","RATE_DAILY","PERIOD"]
[391286471,1760469940389,-177.0,0.000392,120]
[391286472,1760469940418,-161.71336355,0.00039204,30]
[391286473,1760469940447,-2699.39548108,0.00039233,120]
[391286474,1760469940476,-2227.49742,0.00039288,30]
[391286475,1760469940506,-1159.46141153,0.0003941,33]
[391286476,1760469940534,-2227.49742,0.00039488,30]
[391286477,1760469940562,-1000.0,0.000395,120]
[391286478,1760469940590,-1000.0,0.000395,120]
[391286479,1760469940618,-1000.0,0.000395,120]
[391286480,1760469940646,-1000.0,0.000395,120]
[391286481,1760469940675,-1032.06,0.000395,120]
[391286482,1760469940704,-2329.88,0.00039601,120]
[391286483,1760469940734,-2000.0,0.00039678,120]
[391286484,1760469940763,-180626.18863576,0.0003968,120]
[391286485,1760469940793,-2227.49742,0.00039688,30]
[391286486,1760469940823,-322.75530205,0.00039726,120]
[391286487,1760469940852,-1128.59,0.00039726,120]
[391286488,1760469940883,-2124.395,0.00039779,56]
[391286489,1760469940913,-152.0,0.000398,120]
[391286490,1760469940942,-1078.36912,0.000398,120]
[391286491,1760469940972,-445.0,0.00039886,90]
[391286492,1760469941000,-2227.49742,0.00039888,30]
[391286493,1760469941029,-5000.0,0.000399,120]
[391286494,1760469941058,-177.0,0.000399,120]
[391286495,1760469941089,-5453.40633946,0.0004,40]
[391286496,1760469950588,5403.01,9e-05,2]
[391286497,1760469950609,2137.99963588,9e-05,2]
[391286498,1760469953228,-300.0,0.00030169,45]
[391286499,1760469953260,-1000.0,0.0003017,60]
[391286500,1760469953291,-1000.0,0.0003017,60]
[391286501,1760469953327,-1000.0,0.0003017,60]
[391286502,1760469953360,-1000.0,0.0003017,60]
[391286503,1760469953394,-1000.0,0.0003017,60]
[391286504,1760469953428,-1000.0,0.0003017,60]
[391286505,1760469953461,-1000.0,0.0003017,60]
[391286506,1760469953493,-1000.0,0.0003017,60]
[391286507,1760469953525,-1000.0,0.0003017,60]
[391286508,1760469953557,-1000.0,0.0003017,60]
[391286509,1760469953593,-1000.0,0.0003017,60]
[391286510,1760469953624,-1000.0,0.0003017,60]
[391286511,1760469953656,-1000.0,0.0003017,60]
[391286512,1760469953688,-1000.0,0.0003017,60]
[391286513,1760469953722,-1000.0,0.0003017,60]
[391286514,1760469953755,-1000.0,0.0003017,60]
[391286515,1760469953788,-159.56,0.0003017,60]
[391286516,1760469953859,-44546.59366054,0.0004,40]
[391286517,1760469953892,-1000.0,0.0004,120]
[391286518,1760469953924,-2000.0,0.0004,30]
[391286519,1760469953955,-5011.65924059,0.0004,120]
[391286520,1760469953987,-2000.0,0.0004,120]
[391286521,1760469954018,-1000.0,0.0004,120]
[391286522,1760469954048,-477.12749073,0.0004,30]
[391286523,1760469954080,-322.40510493,0.0004,120]
[391286524,1760469954112,-204.40781432,0.0004,30]
[391286525,1760469954145,-643.68277559,0.0004,30]
[391286526,1760469954177,-519.04512037,0.0004,120]
[391286527,1760469954210,-500.0,0.0004,30]
[391286528,1760469954242,-1104.7655666,0.0004,120]
[391286529,1760469954275,-641.93929566,0.0004,30]
[391286530,1760469954307,-2500.0,0.0004,30]
[391286531,1760469954345,-400.0,0.0004,120]
[391286532,1760469954377,-91831.82435045,0.0004,120]
[391286533,1760469954412,-180816.6636405,0.0004,120]
[391286534,1760469954443,-30000.0,0.0004,120]
[391286535,1760469954473,-115932.0,0.0004,120]
[391286536,1760469954503,-500.0,0.0004,120]
[391286537,1760469954532,-292.5915,0.0004,120]
[391286538,1760469954562,-14000.0,0.0004,120]
[391286539,1760469954592,-950.0,0.0004,120]
[391286540,1760469954621,-301.0,0.0004,120]
[391286541,1760469954652,-316.10216743,0.0004,120]
[391286542,1760469954683,-9929.0,0.0004,120]
[391286543,1760469954715,-10283.12724488,0.0004,120]
[391286544,1760469954745,-500.0,0.0004,120]
[391286545,1760469954777,-2329.2057759,0.0004,120]
[391286546,1760469954808,-2607.47257051,0.0004,90]
[391286547,1760469954843,-1808.80897106,0.0004,120]
[391286548,1760469954875,-2702.40886445,0.0004,30]
[391286549,1760469954908,-1965.35821278,0.0004,120]
[391286550,1760469954939,-1889.01271672,0.0004,120]
[391286551,1760469954970,-1117.03328698,0.0004,120]
[391286552,1760469955001,-1152.81691475,0.0004,120]
[391286553,1760469955032,-2444.60784931,0.0004,30]
[391286554,1760469955063,-1522.21521194,0.0004,120]
[391286555,1760469955095,-3000.0,0.0004,120]
[391286556,1760469955126,-204.5,0.0004,30]
[391286557,1760469955157,-1000.0,0.0004,120]
[391286558,1760469955188,-30000.0,0.0004,120]
[391286559,1760469955218,-2500.0,0.0004,120]
[391286560,1760469955249,-2500.0,0.0004,120]
[391286561,1760469955280,-2500.0,0.0004,120]
[391286562,1760469955311,-2000.0,0.0004,120]
[391286563,1760469955347,-2500.0,0.0004,120]
[391286564,1760469955378,-2500.0,0.0004,120]
[391286565,1760469955411,-2227.49742,0.00040088,30]
[391286566,1760469955440,-2000.0,0.00040208,120]
[391286567,1760469955470,-2227.49742,0.00040288,30]
[391286568,1760469955501,-1128.59,0.0004041,120]
[391286569,1760469955529,-2227.49742,0.00040488,30]
[391286570,1760469955559,-2500.0,0.000405,120]
[391286571,1760469955592,-2500.0,0.000405,120]
[391286572,1760469955956,-2500.0,0.000405,120]
[391286573,1760469956018,-2500.0,0.000405,120]
[391286574,1760469956048,-1204.0560812,0.00040517,35]
[391286575,1760469956077,-11561.0,0.00040583,117]
[391286576,1760469956105,-503.23437956,0.000406,30]
[391286577,1760469956134,-177.0,0.000406,120]
[391286578,1760469956163,-2227.49742,0.00040688,30]
[391286579,1760469956192,-234.0,0.000407,120]
[391286580,1760469956221,-2000.0,0.00040739,120]
[391286581,1760469956252,-1444.0,0.00040767,120]
[391286582,1760469956282,-152.0,0.000408,120]
[391286583,1760469956311,-224.54792891,0.000408,60]
[391286584,1760469956345,-2227.49742,0.00040888,30]
[391286585,1760469956375,-5000.0,0.000409,120]
[391286586,1760469956406,-20806.38635038,0.00040998,60]
[391286587,1760469956435,-1000.0,0.00041,120]
[391286588,1760469956463,-684.21180179,0.00041,30]
[391286589,1760469956494,-499.93061818,0.00041,120]
[391286590,1760469956522,-281.91,0.00041,120]
[391286591,1760469956550,-2000.0,0.00041,120]
[391286592,1760469956577,-2000.0,0.00041,120]
[391286593,1760469956605,-500.0,0.00041,120]
[391286594,1760469956633,-366.07198446,0.00041,30]
[391286595,1760469956661,-24705.0,0.00041,120]
[391286596,1760469956689,-11334.65976471,0.00041,30]
[391286597,1760469956718,-129941.05721856,0.00041,120]
[391286598,1760469956747,-2613.83125847,0.00041,120]
[391286599,1760469956775,-58784.6305774,0.00041,120]
[391286600,1760469956804,-1000.0,0.00041,120]
[391286601,1760469956833,-11333.32271312,0.00041,120]
[391286602,1760469956863,-2000.0,0.00041,60]
[391286603,1760469956893,-2500.0,0.00041,120]
[391286604,1760469956922,-2500.0,0.00041,120]
[391286605,1760469956951,-2500.0,0.00041,120]
[391286606,1760469956980,-1328.0,0.00041041,120]
[391286607,1760469957010,-2500.68,0.00041068,120]
[391286608,1760469957039,-2500.68,0.00041068,120]
[391286609,1760469957070,-2500.68,0.00041068,120]
[391286610,1760469957099,-2500.68,0.00041068,120]
[391286611,1760469957129,-2500.68,0.00041068,120]
[391286612,1760469957159,-2500.68,0.00041068,120]
[391286613,1760469957189,-2500.68,0.00041068,120]
[391286614,1760469957220,-2500.68,0.00041068,120]
[391286615,1760469957251,-2500.68,0.00041068,120]
[391286616,1760469957281,-2500.68,0.00041068,120]
[391286617,1760469957311,-2500.68,0.00041068,120]
[391286618,1760469957346,-2500.68,0.00041068,120]
[391286619,1760469957376,-2500.68,0.00041068,120]
[391286620,1760469957405,-2500.68,0.00041068,120]
[391286621,1760469957433,-2500.68,0.00041068,120]
[391286622,1760469957462,-2500.68,0.00041068,120]
[391286623,1760469957491,-2500.68,0.00041068,120]
[391286624,1760469957518,-2500.68,0.00041068,120]
[391286625,1760469957545,-2500.68,0.00041068,120]
[391286626,1760469957573,-2500.68,0.00041068,120]
[391286627,1760469957601,-2500.68,0.00041068,120]
[391286628,1760469957629,-2500.68,0.00041068,120]
[391286629,1760469957657,-2500.68,0.00041068,120]
[391286630,1760469957684,-2500.82127671,0.00041068,120]
[391286631,1760469957712,-2227.49742,0.00041088,30]
[391286632,1760469957739,-1448.78,0.00041095,120]
[391286633,1760469957766,-1448.78,0.00041095,120]
[391286634,1760469957794,-1448.78,0.00041095,120]
[391286635,1760469957822,-1448.78,0.00041095,120]
[391286636,1760469957849,-1448.78,0.00041095,120]
[391286637,1760469957878,-1448.78,0.00041095,120]
[391286638,1760469957908,-1448.78,0.00041095,120]
[391286639,1760469957936,-1448.78,0.00041095,120]
[391286640,1760469957966,-1448.78,0.00041095,120]
[391286641,1760469957994,-1448.78,0.00041095,120]
[391286642,1760469958022,-1448.78,0.00041095,120]
[391286643,1760469958050,-1448.78,0.00041095,120]
[391286644,1760469958078,-1448.78,0.00041095,120]
[391286645,1760469958106,-1448.78,0.00041095,120]
[391286646,1760469958134,-1448.78,0.00041095,120]
[391286647,1760469958163,-1448.78,0.00041095,120]
[391286648,1760469958191,-1448.78,0.00041095,120]
[391286649,1760469958218,-1448.78,0.00041095,120]
[391286650,1760469958246,-1448.78,0.00041095,120]
[391286651,1760469958274,-1448.78,0.00041095,120]
[391286652,1760469958301,-1448.78,0.00041095,120]
[391286653,1760469958333,-1448.78,0.00041095,120]
[391286654,1760469958362,-1448.78,0.00041095,120]
[391286655,1760469958391,-1449.0087241,0.00041095,120]
[391286656,1760469958420,-1128.59,0.00041095,120]
[391286657,1760469958449,-20000.0,0.00041096,120]
[391286658,1760469958477,-3219.73,0.00041096,120]
[391286659,1760469958504,-500.0,0.00041096,30]
[391286660,1760469958530,-500.0,0.00041096,30]
[391286661,1760469958557,-500.0,0.00041096,30]
[391286662,1760469958585,-500.0,0.00041096,30]
[391286664,1760469958612,-500.0,0.00041096,30]
[391286665,1760469958642,-500.0,0.00041096,30]
[391286666,1760469958670,-500.0,0.00041096,30]
[391286667,1760469958697,-500.0,0.00041096,30]
[391286668,1760469958723,-500.0,0.00041096,30]
[391286669,1760469958751,-500.0,0.00041096,30]
[391286670,1760469958778,-500.0,0.00041096,30]
[391286671,1760469958806,-500.0,0.00041096,30]
[391286672,1760469958833,-500.0,0.00041096,30]
[391286673,1760469958860,-500.0,0.00041096,30]
[391286674,1760469958887,-500.0,0.00041096,30]
[391286675,1760469958914,-500.0,0.00041096,30]
[391286676,1760469958942,-500.0,0.00041096,30]
[391286677,1760469959183,-500.0,0.00041096,30]
[391286678,1760469959212,-500.0,0.00041096,30]
[391286679,1760469959242,-500.0,0.00041096,30]
[391286680,1760469959270,-500.0,0.00041096,30]
[391286681,1760469959297,-500.0,0.00041096,30]
[391286682,1760469959325,-500.0,0.00041096,30]
[391286683,1760469959355,-500.0,0.00041096,30]
[391286684,1760469959387,-500.0,0.00041096,30]
[391286685,1760469959420,-500.0,0.00041096,30]
[391286686,1760469959451,-500.0,0.00041096,30]
[391286687,1760469959481,-500.0,0.00041096,30]
[391286688,1760469959511,-500.0,0.00041096,30]
[391286689,1760469959539,-500.0,0.00041096,30]
[391286690,1760469959570,-500.0,0.00041096,30]
[391286691,1760469959600,-500.0,0.00041096,30]
[391286692,1760469959631,-500.0,0.00041096,30]
[391286693,1760469959661,-500.0,0.00041096,30]
[391286694,1760469959691,-500.0,0.00041096,30]
[391286695,1760469959721,-500.0,0.00041096,30]
[391286696,1760469959751,-500.0,0.00041096,30]
[391286697,1760469959779,-500.0,0.00041096,30]
[391286698,1760469959809,-500.0,0.00041096,30]
[391286699,1760469959839,-500.0,0.00041096,30]
[391286700,1760469959868,-500.0,0.00041096,30]
[391286701,1760469959898,-500.0,0.00041096,30]
[391286702,1760469959929,-500.0,0.00041096,30]
[391286703,1760469959960,-500.0,0.00041096,30]
[391286704,1760469959992,-500.0,0.00041096,30]
[391286705,1760469960022,-500.0,0.00041096,30]
[391286706,1760469960050,-500.0,0.00041096,30]
[391286707,1760469960079,-500.0,0.00041096,30]
[391286708,1760469960106,-500.0,0.00041096,30]
[391286709,1760469960134,-500.0,0.00041096,30]
[391286710,1760469960163,-500.0,0.00041096,30]
[391286711,1760469960195,-500.0,0.00041096,30]
[391286712,1760469960226,-500.0,0.00041096,30]
[391286713,1760469960256,-500.0,0.00041096,30]
[391286714,1760469960286,-500.0,0.00041096,30]
[391286715,1760469960322,-500.0,0.00041096,30]
[391286716,1760469960354,-500.0,0.00041096,30]
[391286717,1760469960386,-500.0,0.00041096,30]
[391286718,1760469960420,-500.0,0.00041096,30]
[391286719,1760469960451,-500.0,0.00041096,30]
[391286720,1760469960481,-500.0,0.00041096,30]
[391286721,1760469960510,-500.0,0.00041096,30]
[391286722,1760469960540,-500.0,0.00041096,30]
[391286723,1760469960571,-500.0,0.00041096,30]
[391286724,1760469960602,-500.0,0.00041096,30]
[391286725,1760469960634,-500.0,0.00041096,30]
[391286726,1760469960666,-500.0,0.00041096,30]
[391286727,1760469960698,-500.0,0.00041096,30]
[391286728,1760469960730,-500.0,0.00041096,30]
[391286729,1760469960764,-500.0,0.00041096,30]
[391286730,1760469960797,-500.0,0.00041096,30]
[391286731,1760469960827,-500.0,0.00041096,30]
[391286732,1760469960857,-484.0,0.00041096,30]
[391286733,1760469960889,-2000.0,0.00041096,120]
[391286734,1760469960918,-2000.0,0.00041096,120]
[391286735,1760469960950,-2000.0,0.00041096,120]
[391286736,1760469960983,-2000.0,0.00041096,120]
[391286737,1760469961013,-2000.0,0.00041096,120]
[391286738,1760469961046,-2000.0,0.00041096,120]
[391286739,1760469961078,-2000.0,0.00041096,120]
[391286740,1760469961111,-2000.0,0.00041096,120]
[391286741,1760469961144,-2000.0,0.00041096,120]
[391286742,1760469961173,-2000.0,0.00041096,120]
[391286743,1760469961203,-2000.0,0.00041096,120]
[391286744,1760469961236,-2000.0,0.00041096,120]
[391286745,1760469961268,-2000.0,0.00041096,120]
[391286746,1760469961299,-2000.0,0.00041096,120]
[391286747,1760469961330,-2000.0,0.00041096,120]
[391286748,1760469961362,-2000.0,0.00041096,120]
[391286749,1760469961393,-2000.0,0.00041096,120]
[391286750,1760469961423,-2000.0,0.00041096,120]
[391286751,1760469961453,-2000.0,0.00041096,120]
[391286752,1760469961484,-2000.0,0.00041096,120]
[391286753,1760469961514,-2000.0,0.00041096,120]
[391286754,1760469961541,-2000.0,0.00041096,120]
[391286755,1760469961573,-2000.0,0.00041096,120]
[391286756,1760469961602,-2000.0,0.00041096,120]
[391286757,1760469961635,-2000.0,0.00041096,120]
[391286758,1760469961668,-2000.0,0.00041096,120]
[391286759,1760469961698,-2000.0,0.00041096,120]
[391286760,1760469961730,-2000.0,0.00041096,120]
[391286761,1760469961761,-2000.0,0.00041096,120]
[391286762,1760469961793,-2000.0,0.00041096,120]
[391286763,1760469961823,-2000.0,0.00041096,120]
[391286764,1760469961853,-2000.0,0.00041096,120]
[391286765,1760469961883,-2000.0,0.00041096,120]
[391286766,1760469961913,-2000.0,0.00041096,120]
[391286767,1760469961944,-2000.0,0.00041096,120]
[391286768,1760469961976,-2000.0,0.00041096,120]
[391286769,1760469962008,-2000.0,0.00041096,120]
[391286770,1760469962038,-2000.0,0.00041096,120]
[391286771,1760469962070,-2000.0,0.00041096,120]
[391286772,1760469962099,-2000.0,0.00041096,120]
[391286773,1760469962130,-2000.0,0.00041096,120]
[391286774,1760469962161,-2000.0,0.00041096,120]
[391286775,1760469962193,-2000.0,0.00041096,120]
[391286776,1760469962224,-2000.0,0.00041096,120]
[391286777,1760469962257,-2000.0,0.00041096,120]
[391286778,1760469962287,-2000.0,0.00041096,120]
[391286779,1760469962324,-2000.0,0.00041096,120]
[391286780,1760469962358,-2000.0,0.00041096,120]
[391286781,1760469962390,-2000.0,0.00041096,120]
[391286782,1760469962422,-2000.0,0.00041096,120]
[391286783,1760469962663,-2000.0,0.00041096,120]
[391286784,1760469962692,-2000.0,0.00041096,120]
[391286785,1760469962718,-2000.0,0.00041096,120]
[391286786,1760469962746,-2000.0,0.00041096,120]
[391286787,1760469962773,-2000.0,0.00041096,120]
[391286788,1760469962800,-2000.0,0.00041096,120]
[391286789,1760469962826,-2000.0,0.00041096,120]
[391286790,1760469962854,-2000.0,0.00041096,120]
[391286791,1760469962883,-2000.0,0.00041096,120]
[391286792,1760469962912,-1945.0,0.00041096,120]
[391286793,1760469962941,-500.0,0.00041096,30]
[391286794,1760469962970,-2138.0,0.00041096,120]
[391286795,1760469962997,-112522.77869968,0.000411,120]
[391286796,1760469963025,-2000.0,0.00041269,120]
[391286797,1760469963053,-2227.49742,0.00041288,30]
[391286798,1760469963082,-177.0,0.000413,120]
[391286799,1760469963109,-2227.49742,0.00041488,30]
[391286800,1760469963136,-883.79990126,0.000415,120]
[391286801,1760469963162,-2500.0,0.000415,120]
[391286802,1760469963190,-2500.0,0.000415,120]
[391286803,1760469963217,-753.05000687,0.000416,120]
[391286804,1760469963246,-1248.65075087,0.00041623,38]
[391286805,1760469963274,-2227.49742,0.00041688,30]
[391286806,1760469963302,-1128.59,0.0004178,120]
[391286807,1760469963334,-2001.49874776,0.00041799,30]
[391286808,1760469963363,-2000.0,0.00041799,120]
[391286809,1760469963392,-200.0,0.00041799,120]
[391286810,1760469963420,-10000.0,0.000418,120]
[391286811,1760469963448,-152.0,0.000418,120]
[391286812,1760469963476,-2227.49742,0.00041888,30]
[391286813,1760469963505,-5000.0,0.000419,120]
[391286814,1760469963538,-1328.0,0.00041973,120]
[391286815,1760469963571,-1000.0,0.00041999,120]
[391286816,1760469963602,-1000.0,0.00042,120]
[391286817,1760469963632,-30939.8611584,0.00042,120]
[391286818,1760469963660,-579.26009616,0.00042,30]
[391286819,1760469963687,-658.04769172,0.00042,120]
[391286820,1760469963715,-400.0,0.00042,120]
[391286821,1760469963741,-55615.18022248,0.00042,30]
[391286822,1760469963772,-2000.0,0.00042,120]
[391286823,1760469963801,-874.55,0.00042,30]
[391286824,1760469963831,-500.0,0.00042,120]
[391286825,1760469963860,-7157.99380987,0.00042,120]
[391286826,1760469963892,-20000.0,0.00042,120]
[391286827,1760469963923,-2009.22435713,0.00042,120]
[391286828,1760469963955,-150477.91719457,0.00042,120]
[391286829,1760469963986,-25000.0,0.00042,120]
[391286830,1760469964018,-10000.0,0.00042,120]
[391286831,1760469964051,-10000.0,0.00042,120]
[391286832,1760469964082,-177.0,0.00042,120]
[391286833,1760469964113,-114342.75360353,0.00042,120]
[391286834,1760469964140,-3000.0,0.00042,120]
[391286835,1760469964169,-1533.36565955,0.00042,30]
[391286836,1760469964198,-1168.83997057,0.00042,30]
[391286837,1760469964231,-1548.60007132,0.00042,120]
[391286838,1760469964264,-188226.55844079,0.00042,120]
[391286839,1760469964295,-5269.54586518,0.00042,120]
[391286840,1760469964327,-136741.74734611,0.00042,120]
[391286841,1760469964359,-2500.0,0.00042,120]
[391286842,1760469964389,-2500.0,0.00042,120]
[391286843,1760469964419,-394.06595,0.00042083,30]
[391286844,1760469964447,-1000.0,0.0004215,120]
[391286845,1760469964478,-4112.33,0.00042233,120]
[391286846,1760469964507,-600.204812,0.0004233,120]
[391286847,1760469964538,-1128.59,0.00042465,120]
[391286848,1760469964567,-50000.0,0.000425,120]
[391286849,1760469964596,-3087.884817,0.000425,120]
[391286850,1760469964624,-1943.96,0.000425,120]
[391286851,1760469964653,-1672.90464208,0.000425,60]
[391286852,1760469964681,-31673.12,0.000425,120]
[391286853,1760469964710,-2500.0,0.000425,120]
[391286854,1760469964738,-2500.0,0.000425,120]
[391286855,1760469964767,-2800.0,0.00042666,60]
[391286856,1760469964794,-152.0,0.000427,120]
[391286857,1760469964822,-273.60360107,0.000427,120]
[391286858,1760469964851,-3544.0,0.000427,120]
[391286859,1760469964879,-228.27608161,0.000427,120]
[391286860,1760469964911,-177.0,0.000427,120]
[391286861,1760469964942,-1293.24542055,0.0004273,40]
[391286862,1760469964972,-1444.0,0.0004274,30]
[391286863,1760469965002,-7874.44569325,0.000428,60]
[391286864,1760469965031,-446363.68546059,0.000428,120]
[391286865,1760469965059,-332098.45060787,0.000428,120]
[391286866,1760469965087,-200.0,0.0004286,120]
[391286867,1760469965116,-150.0,0.00042867,120]
[391286868,1760469965147,-2798.0,0.000429,70]
[391286869,1760469965175,-174458.25623771,0.000429,120]
[391286870,1760469965203,-5000.0,0.000429,120]
[391286871,1760469965231,-1328.0,0.00042904,120]
[391286872,1760469965260,-1000.0,0.00042999,120]
[391286873,1760469965289,-1000.0,0.00043,120]
[391286874,1760469965321,-5000.0,0.00043,120]
[391286875,1760469965349,-1509.0,0.00043,120]
[391286876,1760469965377,-257303.3813,0.00043,30]
[391286877,1760469965407,-15500.0,0.00043,120]
[391286878,1760469965436,-5000.0,0.00043,120]
[391286879,1760469965464,-13194.53420463,0.00043,90]
[391286880,1760469965493,-2000.0,0.00043,120]
[391286881,1760469965531,-343062.0,0.00043,120]
[391286882,1760469965560,-500.0,0.00043,120]
[391286883,1760469965589,-172.77865138,0.00043,120]
[391286884,1760469965617,-24705.0,0.00043,120]
[391286885,1760469965646,-20000.0,0.00043,120]
[391286886,1760469965674,-10000.0,0.00043,120]
[391286887,1760469965927,-25000.0,0.00043,120]
[391286888,1760469965959,-3264.00599895,0.00043,120]
[391286889,1760469965989,-406.03,0.00043,30]
[391286890,1760469966020,-24132.26,0.00043,120]
[391286891,1760469966051,-2500.0,0.00043,120]
[391286892,1760469966080,-2500.0,0.00043,120]
[391286893,1760469966110,-203.01,0.00043014,120]
[391286894,1760469966140,-3080.80787785,0.000431,120]
[391286895,1760469966172,-30670.59857887,0.000431,120]
[391286896,1760469966202,-1000.0,0.0004315,120]
[391286897,1760469966233,-1128.59,0.0004315,120]
[391286898,1760469966264,-177.0,0.000434,120]
[391286899,1760469966295,-987567.08624623,0.000434,120]
[391286902,1760469967953,-4.07218455,0.00012869,2]
[391286904,1760469975989,7908.48899128,8e-05,2]
[391286908,1760469981086,-375.51287448,0.0001307,2]
[391286910,1760469985379,-619.98616769,0.0001307,2]
[391286911,1760470006509,-161.71336356,0.00030172,30]
[391286912,1760470006553,-152.5936378,0.000372,120]
[391286913,1760470006583,-152.5936378,0.000372,120]
[391286914,1760470006616,-152.5936378,0.000372,120]
[391286915,1760470006648,-300.0,0.00040849,103]
[391286916,1760470006678,-34421.19,0.0004275,120]
[391286917,1760470006708,-13760.02,0.0004275,120]
[391286918,1760470006737,-35228.31,0.0004275,120]
[391286919,1760470006766,-1116.77285947,0.0004275,120]
[391286920,1760470006795,-25186.75881845,0.0004275,120]
[391286921,1760470006823,-494.50766056,0.0004315,120]
[391286922,1760470006856,-13863.02,0.0004315,120]
[391286923,1760470006886,-12432.91375377,0.000434,120]
[391286924,1760470006915,-427658.9186,0.00043444,30]
[391286925,1760470006945,-42375.79321422,0.00043455,120]
[391286926,1760470006975,-257.75274986,0.00043455,120]
[391286927,1760470007005,-643.77452939,0.00043458,120]
[391286928,1760470007035,-96970.44447982,0.00043462,120]
[391286929,1760470007067,-7772.30187196,0.00043462,120]
[391286930,1760470007097,-198.80622643,0.00043471,120]
[391286931,1760470007128,-257.75274986,0.00043473,120]
[391286932,1760470007159,-256.92451086,0.00043483,120]
[391286933,1760470007190,-198.80622643,0.00043489,120]
[391286934,1760470007226,-838.18112973,0.00043494,120]
[391286935,1760470007257,-1023.94514461,0.00043499,120]
[391286936,1760470007288,-4284123.61119762,0.000435,120]
[391286939,1760470011549,-152.5936378,0.000372,120]
[391286940,1760470011585,-3011410.82190684,0.000435,120]
[391286941,1760470011615,-175095.15808656,0.000435,120]
[391286942,1760470011645,-2500.0,0.000435,120]
[391286943,1760470011674,-2500.0,0.000435,120]
[391286944,1760470011703,-9070.45563799,0.00043501,120]
[391286945,1760470011732,-9070.45563799,0.00043502,120]
[391286946,1760470011761,-198.80622643,0.0004351,120]
[391286947,1760470011789,-9070.45563799,0.00043515,120]
[391286948,1760470011817,-220.92697382,0.0004352,120]
[391286949,1760470011845,-9137.82733667,0.00043529,120]
[391286950,1760470011873,-9137.82733667,0.00043531,120]
[391286951,1760470011902,-256.92451086,0.00043539,120]
[391286952,1760470011931,-7772.30187196,0.00043542,120]
[391286953,1760470011961,-220.92697382,0.00043546,120]
[391286954,1760470011991,-1023.94514461,0.0004355,120]
[391286955,1760470012022,-1023.94514461,0.00043557,120]
[391286956,1760470012050,-66868.0,0.0004356,120]
[391286957,1760470012080,-66868.0,0.0004356,120]
[391286958,1760470012109,-66868.0,0.0004356,120]
[391286959,1760470012139,-66868.0,0.0004356,120]
[391286960,1760470012167,-66868.0,0.0004356,120]
[391286961,1760470012197,-47112.5,0.0004356,120]
[391286962,1760470012226,-42375.79321422,0.00043562,120]
[391286963,1760470012255,-643.77452939,0.00043562,120]
[391286964,1760470012283,-220.92697382,0.00043563,120]
[391286965,1760470012312,-42375.79321422,0.00043577,120]
[391286966,1760470012344,-9137.82733667,0.00043579,120]
[391286967,1760470012376,-1023.94514461,0.00043585,120]
[391286968,1760470012407,-220.92697382,0.00043587,120]
[391286969,1760470012436,-42375.79321422,0.00043589,120]
[391286970,1760470012464,-198.80622643,0.0004359,120]
[391286971,1760470012493,-257.75274986,0.0004359,120]
[391286972,1760470012909,-220.92697382,0.00043591,120]
[391286973,1760470012939,-9070.45563799,0.00043598,120]
[391286974,1760470012969,-1935.21140342,0.000436,120]
[391286975,1760470012999,-9070.45563799,0.000436,120]
[391286976,1760470013030,-7772.30187196,0.00043606,120]
[391286977,1760470013062,-643.77452939,0.00043607,120]
[391286978,1760470013093,-198.80622643,0.00043622,120]
[391286979,1760470013125,-9137.82733667,0.00043624,120]
[391286980,1760470013156,-256.92451086,0.00043626,120]